bitfinex/quotes_SOLUSD_20240725
["timestamp","ask_amount","ask_price","bid_price","bid_amount"]
[1721908984645,35.51,169.34,169.23,21.18146018]
[1721908984840,20.0,169.33,169.24,1.18147044]
[1721908985335,20.0,169.33,169.23,20.0]
[1721908986138,21.47685371,169.33,169.23,20.0]
[1721908987235,20.0,169.33,169.23,20.0]
[1721908987743,20.0,169.34,169.23,20.0]
[1721908987925,1.47670218,169.33,169.23,20.0]
[1721908988641,5.9063,169.31,169.2,20.0]
[1721908988834,1.47701091,169.31,169.2,20.0]
[1721908989039,41.4159,169.32,169.2,20.0]
[1721908989441,1.47701091,169.33,169.21,1.18162921]
[1721908989442,1.47703651,169.33,169.21,1.18162921]
[1721908989647,1.47670655,169.32,169.2,30.81387772]
[1721908989848,1.47670655,169.32,169.21,9.63251248]
[1721908990147,1.47670655,169.32,169.22,20.0]
[1721908990345,1.47680163,169.32,169.22,20.0]
[1721908991329,21.47680163,169.32,169.22,20.0]
[1721908995955,0.7867576,169.25,169.21,9.63251248]
[1721908997755,0.7867576,169.25,169.18,22.9789]
[1721909006145,0.7867576,169.25,169.21,13.43]
[1721909007065,0.7867576,169.25,169.24,13.43]
[1721909007846,0.7867576,169.25,169.2,53.72]
[1721909008143,0.7867576,169.25,169.23,13.43]
[1721909009142,0.7867576,169.25,169.18,22.9789]
[1721909009463,0.7867576,169.25,169.23,13.43]
[1721909010679,0.7867576,169.25,169.22,13.43]
[1721909013451,0.7867576,169.25,169.21,13.43]
[1721909014046,0.7867576,169.25,169.2,13.43]
[1721909014257,14.2167576,169.25,169.2,13.43]
[1721909014766,13.43,169.22,169.14,30.68116769]
[1721909015150,13.43,169.22,169.16,13.43]
[1721909015351,13.43,169.22,169.17,13.43]
[1721909016167,13.43,169.22,169.14,16.0073]
[1721909016365,13.43,169.21,169.16,13.43]
[1721909016949,13.43,169.21,169.11,7.70789891]
[1721909017281,13.43,169.2,169.15,13.43]
[1721909017478,13.43,169.21,169.15,13.43]
[1721909017681,7.38724258,169.22,169.15,13.43]
[1721909017975,13.43,169.21,169.15,13.43]
[1721909018855,13.43,169.2,169.15,13.43]
[1721909021258,20.0,169.19,169.14,13.43]
[1721909021854,13.43,169.2,169.14,13.43]
[1721909022053,13.43,169.2,169.15,13.43]
[1721909023877,15.5936,169.23,169.16,13.43]
[1721909024079,13.43,169.24,169.18,13.43]
[1721909024376,13.43,169.22,169.12,53.72]
[1721909024572,13.43,169.22,169.13,21.18215458]
[1721909024759,13.43,169.22,169.13,20.0]
[1721909024956,7.38669322,169.24,169.13,20.0]
[1721909025183,13.43,169.22,169.13,21.18205376]
[1721909025562,13.43,169.22,169.13,20.0]
[1721909025764,13.43,169.23,169.13,21.1820572]
[1721909027874,13.43,169.23,169.13,20.0]
[1721909028080,0.7867576,169.25,169.14,1.18204988]
[1721909028264,20.7867576,169.25,169.19,13.43]
[1721909028457,13.43,169.24,169.19,13.43]
[1721909029203,0.7867576,169.25,169.21,13.43]
[1721909031981,0.7867576,169.25,169.2,13.43]
[1721909032777,14.2167576,169.25,169.19,13.43]
[1721909035091,14.2167576,169.25,169.2,13.43]
[1721909035092,0.7867576,169.25,169.2,13.43]
[1721909035468,0.7867576,169.25,169.21,13.43]
[1721909040282,14.2167576,169.25,169.2,13.43]
[1721909042291,0.7867576,169.25,169.21,13.43]
[1721909043787,0.7867576,169.25,169.23,13.43]
[1721909044291,0.7867576,169.25,169.18,17.29176354]
[1721909044496,0.7867576,169.25,169.23,13.43]
[1721909046500,0.7867576,169.25,169.24,13.43]
[1721909047798,0.7867576,169.25,169.2,13.43]
[1721909048210,0.7867576,169.25,169.21,13.43]
[1721909055698,0.7867576,169.25,169.23,13.43]
[1721909056302,0.7867576,169.25,169.22,13.43]
[1721909057124,0.7867576,169.25,169.21,13.43]
[1721909057428,0.7867576,169.25,169.2,13.43]
[1721909057995,0.7867576,169.25,169.21,13.43]
[1721909058294,0.7867576,169.25,169.2,13.43]
[1721909058815,0.7867576,169.25,169.21,13.43]
[1721909060019,19.3392,169.23,169.18,7.70789891]
[1721909060233,13.43,169.22,169.16,13.43]
[1721909060731,15.8328,169.24,169.18,13.43]
[1721909060925,13.43,169.23,169.17,13.43]
[1721909061096,13.43,169.22,169.17,13.43]
[1721909062512,13.43,169.19,169.13,21.13789891]
[1721909062705,13.43,169.18,169.13,21.13789891]
[1721909063133,13.43,169.18,169.13,13.43]
[1721909063332,13.43,169.19,169.13,13.43]
[1721909063510,1.47781585,169.23,169.15,13.43]
[1721909063714,13.43,169.21,169.16,13.43]
[1721909064216,13.43,169.21,169.12,53.72]
[1721909064415,13.43,169.19,169.14,13.43]
[1721909065425,13.43,169.19,169.13,13.35535321]
[1721909065812,13.43,169.16,169.11,13.43]
[1721909066135,13.43,169.14,169.1,8.28896769]
[1721909066307,13.43,169.14,169.08,13.43]
[1721909066921,21.9728,169.17,169.08,13.43]
[1721909067119,13.43,169.15,169.09,13.43]
[1721909067432,13.43,169.15,169.1,13.43]
[1721909068348,13.43,169.15,169.09,13.43]
[1721909069441,13.43,169.11,169.05,8.28896769]
[1721909069643,13.43,169.11,169.06,13.43]
[1721909069817,5.9126,169.13,169.03,6.3485]
[1721909069818,13.43,169.1,169.05,13.43]
[1721909070146,13.43,169.12,169.06,13.43]
[1721909070536,16.0615,169.17,169.1,13.43]
[1721909070725,16.0615,169.17,169.11,13.43]
[1721909070930,29.4915,169.17,169.11,13.43]
[1721909071128,29.4915,169.17,169.12,13.43]
[1721909071650,29.4915,169.17,169.11,13.43]
[1721909072858,16.0615,169.17,169.11,13.43]
[1721909073067,29.4915,169.17,169.11,13.43]
[1721909074278,29.4915,169.17,169.12,13.43]
[1721909075269,16.0615,169.17,169.12,13.43]
[1721909075658,29.4915,169.17,169.12,13.43]
[1721909076474,16.0615,169.17,169.12,13.43]
[1721909076962,29.4915,169.17,169.12,13.43]
[1721909078076,29.4915,169.17,169.11,13.43]
[1721909078983,13.43,169.14,169.05,7.1941836]
[1721909079179,19.3428,169.13,169.05,7.1941836]
[1721909079480,13.43,169.11,169.05,13.43]
[1721909079681,13.43,169.1,169.04,13.43]
[1721909079885,14.90849424,169.1,169.04,13.43]
[1721909080056,13.43,169.1,169.05,13.43]
[1721909080380,13.43,169.11,169.06,13.43]
[1721909080793,13.43,169.11,169.01,7.73710312]
[1721909080957,13.43,169.1,169.04,13.43]
[1721909081160,13.43,169.1,169.0,7.1941836]
[1721909081470,13.43,169.09,169.04,13.43]
[1721909081784,13.43,169.08,169.03,13.43]
[1721909082272,13.43,169.06,168.99,15.7993]
[1721909082488,13.43,169.05,168.99,29.2293]
[1721909082775,13.43,169.05,168.96,7.30882534]
[1721909082989,13.43,169.05,169.0,13.43]
[1721909084006,13.43,169.01,168.96,7.30882534]
[1721909084309,13.43,169.01,168.8,53.72]
[1721909084310,5.9193,168.94,168.8,53.72]
[1721909084468,13.43,168.91,168.86,13.43]
[1721909084858,13.43,168.91,168.82,22.84559983]
[1721909085098,13.43,168.84,168.73,22.845599]
[1721909085264,13.43,168.83,168.78,13.43]
[1721909085820,1.4808362,168.87,168.82,5.9234]
[1721909086026,13.43,168.84,168.82,5.9234]
[1721909086310,13.43,168.83,168.8,5.9239]
[1721909086478,13.43,168.83,168.81,5.9238]
[1721909086683,1.4808362,168.87,168.79,13.43]
[1721909086993,1.4808362,168.87,168.74,20.0]
[1721909086994,46.48074454,168.88,168.8,13.43]
[1721909087194,13.43,168.85,168.8,13.43]
[1721909087619,13.43,168.85,168.83,5.9229]
[1721909087814,7.88111518,168.89,168.83,13.43]
[1721909088122,15.7317,168.9,168.83,13.43]
[1721909088423,17.21214975,168.9,168.87,5.9216]
[1721909088794,17.21214975,168.9,168.86,5.922]
[1721909089300,6.6154,168.93,168.88,5.9213]
[1721909089619,6.6154,168.93,168.8,1.18424361]
[1721909089818,6.6154,168.93,168.87,5.9213]
[1721909090028,6.6154,168.93,168.8,66.18424361]
[1721909090326,6.6154,168.93,168.88,5.9213]
[1721909093212,12.535,168.93,168.87,5.9216]
[1721909094102,7.400246,168.92,168.86,5.922]
[1721909094311,45.0,168.91,168.79,16.0351]
[1721909094491,1.48045026,168.9,168.79,16.0351]
[1721909094811,7.40074994,168.91,168.85,5.9221]
[1721909095013,7.40074994,168.91,168.86,5.922]
[1721909095312,1.48044994,168.91,168.86,5.922]
[1721909095614,5.9206,168.9,168.84,5.9224]
[1721909096119,1.48044999,168.89,168.84,5.9224]
[1721909096301,1.48044999,168.89,168.85,5.9223]
[1721909096690,1.48044943,168.91,168.79,16.0351]
[1721909096896,5.9209,168.9,168.85,5.9223]
[1721909097096,45.0,168.89,168.85,5.9223]
[1721909097309,8.09601243,168.93,168.82,6.4861]
[1721909097506,1.48017438,168.92,168.82,6.4861]
[1721909098111,1.48017438,168.92,168.88,5.9212]
[1721909098300,1.48017438,168.92,168.82,6.4861]
[1721909098301,1.48017438,168.92,168.87,5.9216]
[1721909098702,46.48017438,168.92,168.87,5.9216]
[1721909099296,46.48017438,168.92,168.88,5.9213]
[1721909099810,8.0957084,168.93,168.88,5.9213]
[1721909100003,1.48022431,168.92,168.88,5.9212]
[1721909100310,1.48022431,168.92,168.87,5.9216]
[1721909100505,8.09571894,168.93,168.82,6.4861]
[1721909100686,1.48031894,168.92,168.82,6.4861]
[1721909101092,5.9199,168.92,168.82,6.4861]
[1721909101608,14.01532079,168.93,168.82,6.4861]
[1721909101817,8.09569291,168.93,168.88,5.9212]
[1721909102022,14.01549291,168.93,168.86,5.9217]
[1721909102309,12.5352,168.93,168.82,6.4861]
[1721909102500,14.01552101,168.93,168.82,6.4861]
[1721909102698,5.92,168.92,168.87,5.9216]
[1721909103004,50.9206,168.91,168.85,5.9222]
[1721909103202,50.9206,168.91,168.86,5.922]
[1721909103803,6.6154,168.93,168.87,5.9216]
[1721909104108,12.535,168.93,168.88,5.9212]
[1721909104493,14.01528854,168.93,168.88,5.9212]
[1721909105196,5.92,168.92,168.87,5.9216]
[1721909107212,6.6154,168.93,168.84,5.9225]
[1721909107391,42.1554,168.93,168.81,26.98]
[1721909107591,5.9216,168.88,168.82,5.9232]
[1721909107799,5.9216,168.88,168.78,6.0797]
[1721909108002,1.48063691,168.87,168.78,6.0797]
[1721909108911,5.9216,168.88,168.83,5.923]
[1721909109091,5.9216,168.88,168.78,6.0797]
[1721909109294,7.40243918,168.87,168.76,26.98]
[1721909109721,1.48072588,168.91,168.77,1.1845807]
[1721909109929,6.6154,168.93,168.79,26.98]
[1721909110221,6.6154,168.93,168.82,26.98]
[1721909110419,6.6154,168.93,168.83,1.18405843]
[1721909110596,6.6154,168.93,168.83,46.18405843]
[1721909110796,6.6154,168.93,168.82,33.3893]
[1721909110797,8.09548716,168.93,168.82,33.3893]
[1721909110996,6.6154,168.93,168.88,5.921]
[1721909111226,12.5351,168.93,168.87,5.9216]
[1721909111424,5.9202,168.92,168.82,26.98]
[1721909111628,6.6154,168.93,168.82,28.16427984]
[1721909111860,6.6154,168.93,168.89,5.9208]
[1721909112004,50.9201,168.92,168.86,5.9219]
[1721909112208,5.9207,168.9,168.84,5.9227]
[1721909112631,5.9207,168.9,168.85,5.9223]
[1721909113122,21.1496,168.91,168.85,5.9223]
[1721909113327,46.48061074,168.9,168.76,1.18448859]
[1721909113538,5.9217,168.87,168.82,5.9234]
[1721909113821,1.48077427,168.87,168.82,5.9234]
[1721909114406,46.48077427,168.87,168.81,5.9237]
[1721909114830,7.40257427,168.87,168.81,5.9237]
[1721909115534,20.0,168.89,168.84,5.9224]
[1721909115705,25.921,168.89,168.84,5.9226]
[1721909116420,27.40166127,168.89,168.84,5.9226]
[1721909116815,21.48066127,168.89,168.84,5.9226]
[1721909117333,50.9216,168.88,168.82,5.9232]
[1721909117503,7.40272935,168.87,168.81,5.9237]
[1721909118129,7.40272935,168.87,168.82,5.9233]
[1721909119232,5.9219,168.87,168.82,5.9233]
[1721909119531,20.0,168.89,168.79,26.98]
[1721909119831,15.2293,168.91,168.87,5.9216]
[1721909120026,15.2293,168.91,168.89,5.9208]
[1721909120233,389.2,168.92,168.88,5.9213]
[1721909120532,16.4531,168.95,168.83,1.18420659]
[1721909120832,16.4531,168.95,168.91,5.92]
[1721909121224,16.4531,168.95,168.92,5.9199]
[1721909122122,407.54847614,169.0,168.88,26.98]
[1721909122316,405.2589,169.0,168.89,1.1837759]
[1721909122523,405.2589,169.0,168.9,1.18374146]
[1721909122728,5.9167,169.02,168.9,1.18374146]
[1721909122911,5.9158,169.04,168.91,26.98]
[1721909123113,33.4854,169.05,168.92,1.18352129]
[1721909123114,6.5054,169.05,168.92,1.18352129]
[1721909123434,6.5054,169.05,168.93,1.18354825]
[1721909123635,5.9158,169.04,168.93,1.18354825]
[1721909124535,5.9158,169.04,168.91,48.16352774]
[1721909124919,5.9158,169.04,168.92,45.0]
[1721909125212,7.39508844,169.04,168.92,45.0]
[1721909125411,5.9158,169.04,168.93,1.18344922]
[1721909125832,5.9158,169.04,168.92,46.18344821]
[1721909126039,7.3951341,169.04,168.92,46.18344821]
[1721909126340,5.9157,169.05,168.93,17.04776844]
[1721909126637,65.0,169.04,168.93,17.04776844]
[1721909126813,5.9149,169.07,168.94,91.98]
[1721909127015,5.9149,169.07,168.95,1.18330843]
[1721909127213,5.9149,169.07,168.96,1.18330999]
[1721909129851,5.9144,169.08,168.97,6.3398]
[1721909130146,5.9144,169.08,168.98,1.18317313]
[1721909130351,5.9144,169.08,168.97,7.52294714]
[1721909132543,5.9144,169.08,168.97,34.50294714]
[1721909132840,5.914,169.09,168.98,45.0]
[1721909133144,5.9137,169.1,168.99,21.18299725]
[1721909133932,5.9137,169.1,169.0,45.0]
[1721909134125,5.9137,169.1,169.01,1.1829347]
[1721909134728,6.14373156,169.14,169.03,6.2043]
[1721909134925,6.14373156,169.14,169.04,106.18264673]
[1721909135136,5.9108,169.18,169.06,26.98]
[1721909135425,63.99805886,169.21,169.07,21.18244709]
[1721909135733,63.99805886,169.21,169.08,1.18243485]
[1721909136250,5.9107,169.19,169.08,1.18243485]
[1721909137335,5.9109,169.18,169.08,1.18243485]
[1721909138146,63.99802414,169.21,169.08,1.18243485]
[1721909138147,5.9104,169.2,169.08,1.18243485]
[1721909138748,5.9105,169.19,169.09,15.1295]
[1721909139060,1.47802062,169.18,169.09,15.1295]
[1721909139242,1.47811806,169.17,169.04,45.0]
[1721909139433,1.47811806,169.17,169.04,60.1295]
[1721909139650,5.9119,169.15,169.04,60.1295]
[1721909139848,1.47834602,169.14,169.04,60.1295]
[1721909140633,1.47834512,169.16,169.05,20.0]
[1721909141450,1.47824708,169.17,169.05,21.18259766]
[1721909141645,1.47824708,169.17,169.06,45.0]
[1721909142144,1.47824708,169.17,169.05,20.0]
[1721909143045,65.0,169.18,169.06,45.0]
[1721909143355,66.4781448,169.18,169.06,45.0]
[1721909143537,1.47814767,169.17,169.06,45.0]
[1721909144749,1.47814652,169.17,169.06,45.0]
[1721909144931,389.2,169.19,169.07,1.18251547]
[1721909145133,389.2,169.19,169.08,1.18235794]
[1721909145345,5.9095,169.22,169.09,6.1421]
[1721909145637,7.38747051,169.22,169.1,1.18237641]
[1721909146155,5.9099,169.21,169.1,1.18237641]
[1721909146358,65.0,169.2,169.1,1.18237641]
[1721909146648,70.9102,169.2,169.09,6.1421]
[1721909149963,1.4779734,169.19,169.09,6.1421]
[1721909152763,7.38867678,169.19,169.09,6.1421]
[1721909152933,45.0,169.18,169.09,6.1421]
[1721909153135,1.47812363,169.17,169.09,6.1421]
[1721909154748,46.47812445,169.18,169.1,15.5527]
[1721909154947,45.0,169.19,169.1,15.5527]
[1721909155338,1.47812244,169.18,169.1,15.5527]
[1721909155752,1.47812463,169.17,169.1,15.5527]
[1721909156957,46.47812463,169.17,169.1,15.5527]
[1721909157270,1.47812463,169.17,169.1,15.5527]
[1721909157758,46.47812463,169.17,169.1,15.5527]
[1721909158450,1.47812463,169.17,169.1,15.5527]
[1721909158965,45.0,169.18,169.1,15.5527]
[1721909159455,1.47823614,169.17,169.1,15.5527]
[1721909159653,1.47823614,169.17,169.09,6.1421]
[1721909159954,5.9118,169.16,169.09,6.1421]
[1721909160154,21.47823614,169.17,169.06,16.1287]
[1721909160155,46.47845111,169.15,169.06,16.1287]
[1721909160359,7.39077333,169.14,169.06,16.1287]
[1721909160658,1.47857333,169.14,169.06,16.1287]
[1721909163671,50.9119,169.15,169.06,16.1287]
[1721909163970,5.9129,169.13,169.01,21.8499]
[1721909164347,45.0,169.12,169.01,21.8499]
[1721909164747,45.0,169.13,169.01,21.8499]
[1721909164948,5.9124,169.14,169.01,21.8499]
[1721909165145,65.0,169.13,169.01,21.8499]
[1721909165750,20.0,169.13,169.02,26.98]
[1721909165951,20.0,169.15,169.02,71.98]
[1721909166265,46.47847069,169.14,169.02,71.98]
[1721909166464,1.47847069,169.14,169.03,20.0]
[1721909166768,405.8208,169.18,169.04,1.18275476]
[1721909166974,1.47828423,169.17,169.05,50.0971]
[1721909167177,1.47828423,169.17,169.06,20.0]
[1721909171148,389.2,169.18,169.09,22.7631]
[1721909171347,389.2,169.18,169.09,23.94547296]
[1721909172072,5.9094,169.22,169.09,23.94547296]
[1721909172286,7.3873797,169.22,169.09,23.94547296]
[1721909172468,20.0,169.21,169.09,23.94547296]
[1721909172659,20.0,169.23,169.1,20.0]
[1721909172977,5.9098,169.21,169.1,20.0]
[1721909173268,1.47803191,169.2,169.1,20.0]
[1721909173772,46.47803191,169.2,169.1,20.0]
[1721909174468,1.47803191,169.2,169.1,20.0]
[1721909174669,5.9108,169.18,169.09,22.7631]
[1721909174874,1.47819905,169.17,169.09,22.7631]
[1721909176075,45.0,169.18,169.09,22.7631]
[1721909176278,20.0,169.19,169.09,22.7631]
[1721909176447,20.0,169.21,169.09,22.7631]
[1721909176650,45.0,169.2,169.09,22.7631]
[1721909177183,1.47802792,169.19,169.09,22.7631]
[1721909178357,50.9102,169.2,169.09,22.7631]
[1721909178756,45.0,169.2,169.09,22.7631]
[1721909179275,45.0,169.2,169.1,1.182407]
[1721909179844,45.0,169.2,169.09,22.7631]
[1721909180051,52.38812909,169.2,169.09,22.7631]
[1721909180354,5.9109,169.18,169.09,22.7631]
[1721909180558,46.47829116,169.17,169.09,22.7631]
[1721909181074,1.47829116,169.17,169.09,22.7631]
[1721909181472,46.47829081,169.18,169.09,22.7631]
[1721909181985,5.9112,169.17,169.09,22.7631]
[1721909182983,35.54,169.22,169.09,22.7631]
[1721909183200,37.01801055,169.22,169.09,22.7631]
[1721909183389,42.92751055,169.22,169.1,20.0]
[1721909183978,32.8891,169.23,169.1,20.0]
[1721909184180,5.9095,169.22,169.11,1.18232463]
[1721909184600,5.9095,169.22,169.1,20.0]
[1721909185173,5.9095,169.22,169.11,1.182264]
[1721909186384,7.38762654,169.21,169.1,20.0]
[1721909186603,1.47784967,169.2,169.1,20.0]
[1721909189589,1.47784219,169.19,169.1,20.0]
[1721909189788,7.38834219,169.19,169.1,20.0]
[1721909189992,5.9105,169.19,169.1,20.0]
[1721909190191,5.9102,169.2,169.1,20.0]
[1721909190392,1.47803457,169.22,169.1,20.0]
[1721909190703,77.13687304,169.22,169.1,20.0]
[1721909190892,66.47803457,169.22,169.1,20.0]
[1721909191077,5.9104,169.2,169.1,20.0]
[1721909191279,1.47806588,169.19,169.1,20.0]
[1721909192296,1.47794769,169.21,169.1,20.0]
[1721909192492,72.38744579,169.22,169.1,20.0]
[1721909193494,66.47794579,169.22,169.1,20.0]
[1721909193700,1.47784157,169.21,169.1,20.0]
[1721909194007,1.47784216,169.2,169.1,20.0]
[1721909194602,21.47783967,169.22,169.11,21.3358]
[1721909196105,1.47783967,169.22,169.11,21.3358]
[1721909196401,46.47783967,169.22,169.11,21.3358]
[1721909196795,52.38733967,169.22,169.11,21.3358]
[1721909197908,5.9098,169.21,169.11,21.3358]
[1721909198112,1.47792146,169.2,169.11,21.3358]
[1721909199606,45.0,169.22,169.11,21.3358]
[1721909200200,13.44,169.2,169.14,13.44]
[1721909201517,13.44,169.19,169.14,13.44]
[1721909202011,13.44,169.19,169.13,13.44]
[1721909203713,1.47794804,169.22,169.14,13.44]
[1721909203929,13.44,169.2,169.15,13.44]
[1721909204096,13.44,169.21,169.16,13.44]
[1721909204423,1.47794804,169.22,169.11,21.3358]
[1721909204424,13.44,169.2,169.15,13.44]
[1721909205812,0.7867576,169.25,169.13,16.2188]
[1721909206010,0.7867576,169.25,169.14,46.18194433]
[1721909206220,14.2267576,169.25,169.19,13.44]
[1721909206532,14.2267576,169.25,169.2,13.44]
[1721909207094,0.7867576,169.25,169.19,13.44]
[1721909207301,13.44,169.24,169.19,13.44]
[1721909207499,0.7867576,169.25,169.2,13.44]
[1721909207709,0.7867576,169.25,169.22,13.44]
[1721909210626,0.7867576,169.25,169.23,13.44]
[1721909211526,0.7867576,169.25,169.22,13.44]
[1721909215545,19.3448,169.36,169.25,23.2827]
[1721909215704,19.434,169.35,169.26,20.0]
[1721909215912,19.434,169.35,169.29,13.44]
[1721909216215,19.434,169.35,169.26,20.0]
[1721909216543,19.434,169.35,169.3,13.44]
[1721909216829,5.994,169.35,169.31,13.44]
[1721909217041,5.994,169.35,169.26,20.0]
[1721909217337,5.994,169.35,169.32,13.44]
[1721909219245,5.994,169.35,169.31,13.44]
[1721909219628,13.44,169.33,169.28,13.44]
[1721909220337,14.91677075,169.33,169.28,13.44]
[1721909221254,1.47677075,169.33,169.29,13.44]
[1721909221554,45.0,169.33,169.29,13.44]
[1721909221713,13.44,169.34,169.29,13.44]
[1721909222420,13.44,169.3,169.21,15.902]
[1721909222627,1.47708759,169.29,169.24,13.44]
[1721909222811,13.44,169.3,169.25,13.44]
[1721909223225,1.47707024,169.29,169.24,13.44]
[1721909223433,15.1864,169.33,169.26,13.44]
[1721909223737,113.98,169.32,169.26,13.44]
[1721909223919,78.44,169.32,169.26,13.44]
[1721909224240,65.0,169.32,169.21,42.742]
[1721909224456,65.0,169.32,169.21,51.19333097]
[1721909224618,65.0,169.32,169.22,8.45133097]
[1721909224818,45.0,169.32,169.22,8.45133097]
[1721909225514,15.1864,169.33,169.22,8.45133097]
[1721909225723,12.2787,169.35,169.22,8.45133097]
[1721909226815,5.994,169.35,169.27,28.02102934]
[1721909227015,5.994,169.35,169.27,26.84]
[1721909227734,1.47660426,169.34,169.25,30.94653097]
[1721909227941,1.47660426,169.34,169.25,22.4952]
[1721909228260,45.0,169.34,169.25,22.4952]
[1721909228952,5.9057,169.33,169.25,22.4952]
[1721909229159,5.9066,169.31,169.21,31.07403097]
[1721909229455,1.47706442,169.3,169.21,31.07403097]
[1721909229833,1.47706552,169.29,169.21,31.07403097]
[1721909230151,5.9079,169.27,169.15,26.84]
[1721909230358,45.0,169.26,169.16,8.45133097]
[1721909230852,27.6656,169.28,169.16,8.45133097]
[1721909230853,45.0,169.27,169.16,8.45133097]
[1721909231039,1.4772861,169.29,169.17,1.18182888]
[1721909231243,389.2,169.3,169.2,15.7193]
[1721909231747,389.2,169.3,169.2,16.90086602]
[1721909231948,389.2,169.3,169.2,15.7193]
[1721909232146,389.2,169.3,169.21,20.0]
[1721909234659,21.6083,169.32,169.21,20.0]
[1721909234834,15.7024,169.32,169.21,20.0]
[1721909235155,15.7024,169.32,169.21,21.18157056]
[1721909235345,17.17929785,169.32,169.21,20.0]
[1721909235744,17.17927105,169.32,169.21,20.0]
[1721909235946,15.7024,169.32,169.21,21.18149267]
[1721909236139,15.7024,169.32,169.21,20.0]
[1721909236347,1.47686584,169.33,169.21,20.0]
[1721909236636,21.47686584,169.33,169.21,21.18149284]
[1721909236832,21.47686584,169.33,169.21,20.0]
[1721909236833,21.47683628,169.33,169.21,20.0]
[1721909237040,46.47683628,169.32,169.21,20.0]
[1721909238458,46.4770128,169.32,169.21,20.0]
[1721909242575,45.0,169.32,169.21,48.02154685]
[1721909242751,7.47093357,169.35,169.21,56.47287782]
[1721909242752,43.01093357,169.35,169.21,56.47287782]
[1721909242947,45.0,169.34,169.21,56.47287782]
[1721909244374,45.0,169.34,169.2,15.7193]
[1721909244375,5.9071,169.29,169.2,15.7193]
[1721909244677,13.43,169.24,169.2,15.7193]
[1721909244889,1.47751631,169.23,169.2,15.7193]
[1721909245074,13.43,169.22,169.19,6.1601]
[1721909246373,1.47759835,169.25,169.19,6.1601]
[1721909246571,66.47749352,169.26,169.19,6.1601]
[1721909246877,72.38559352,169.26,169.19,6.1601]
[1721909247480,1.47759817,169.25,169.19,6.1601]
[1721909251775,70.9081,169.26,169.19,6.1601]
[1721909252378,5.9084,169.25,169.19,6.1601]
[1721909252569,1.47759,169.24,169.19,6.1601]
[1721909253772,5.9084,169.25,169.19,6.1601]
[1721909255569,1.47759072,169.24,169.16,16.213]
[1721909255875,1.47780692,169.23,169.16,16.213]
[1721909256076,5.9098,169.21,169.16,16.213]
[1721909256268,1.4779091,169.2,169.15,6.0804]
[1721909257779,5.9095,169.22,169.15,6.0804]
[1721909258080,7.38713376,169.23,169.15,6.0804]
[1721909258252,21.47772851,169.22,169.15,6.0804]
[1721909259277,6.18144347,169.26,169.15,6.0804]
[1721909259478,5.9078,169.27,169.15,6.0804]
[1721909259975,7.38510513,169.27,169.15,6.0804]
[1721909260280,5.9077,169.27,169.15,7.26232694]
[1721909260468,1.47740776,169.26,169.15,6.0804]
[1721909260681,1.47734118,169.27,169.16,16.4045]
[1721909261070,5.994,169.25,169.16,16.4045]
[1721909263687,7.38608117,169.24,169.16,16.4045]
[1721909263890,1.47762922,169.23,169.16,16.4045]
[1721909264488,7.38672922,169.23,169.16,16.4045]
[1721909264685,5.9095,169.22,169.16,16.4045]
[1721909264885,1.47775898,169.21,169.16,16.4045]
[1721909265179,1.47775898,169.2,169.16,16.4045]